Workbook

Sheet 收盤行情
A1: 報價日期 : 2009/7/1下午 02:00:00
A3: 代號 | B3: 名稱 | C3: 漲跌 | E3: 收盤 | F3: 開盤 | G3: 最高 | H3: 最低 | I3: 總量
A4: 15 | B4: 富 邦 | C4: ▲ | D4: 0.05 | E4: 6.31 | F4: 6.25 | G4: 6.31 | H4: 6.2 | I4: 97
A5: 50 | B5: 台灣50 | C5: ▲ | D5: 0.99 | E5: 45.45 | F5: 44.48 | G5: 45.65 | H5: 44.45 | I5: 11807
A6: 51 | B6: 中100 | C6: ▲ | D6: 0.49 | E6: 24.41 | F6: 24 | G6: 24.5 | H6: 24 | I6: 211
A7: 52 | B7: 富邦IT | C7: ▲ | D7: 0.5 | E7: 27.75 | F7: 27.4 | G7: 27.75 | H7: 27.4 | I7: 65
A8: 53 | B8: 寶電子 | C8: ▲ | D8: 0.48 | E8: 20.31 | F8: 19.74 | G8: 20.34 | H8: 19.74 | I8: 228
A9: 54 | B9: 台商50 | C9: ▲ | D9: 0.45 | E9: 16.26 | F9: 15.95 | G9: 16.27 | H9: 15.95 | I9: 182
A10: 55 | B10: 寶金融 | C10: ▲ | D10: 0.39 | E10: 11.58 | F10: 11.26 | G10: 11.59 | H10: 11.24 | I10: 3116
A11: 56 | B11: 高股息 | C11: ▲ | D11: 0.36 | E11: 19.62 | F11: 19.35 | G11: 19.7 | H11: 19.35 | I11: 172
A12: 57 | B12: FB摩台 | C12: ▲ | D12: 0.44 | E12: 24.04 | F12: 23.9 | G12: 24.04 | H12: 23.83 | I12: 22
A13: 58 | B13: FB發達 | C13: ▲ | D13: 0.6 | E13: 25.7 | F13: 25.7 | G13: 25.7 | H13: 25.7 | I13: 1
A14: 59 | B14: FB金融 | C14: ▲ | D14: 0.48 | E14: 23.88 | F14: 23.8 | G14: 23.88 | H14: 23.33 | I14: 39
A15: 60 | B15: 新台灣 | C15: ▲ | D15: 0.54 | E15: 22.4 | F15: 21.99 | G15: 22.4 | H15: 21.9 | I15: 106
A16: 1000 | B16: 加 權 | C16: ▲ | D16: 146.81 | E16: 6578.97 | F16: 6445.85 | G16: 6593.78 | H16: 6433.69 | I16: 3789961
A17: 1001 | B17: 不含金 | C17: ▲ | D17: 116.62 | E17: 5494.63 | F17: 5386.13 | G17: 5507.48 | H17: 5376.35 | I17: 3789961
A18: 1002 | B18: 水泥類 | C18: ▲ | D18: 5.06 | E18: 431.44 | F18: 427.8 | G18: 434.69 | H18: 424.38 | I18: 3789961
A19: 1003 | B19: 食品類 | C19: ▲ | D19: 9.6 | E19: 608.44 | F19: 602.74 | G19: 609.47 | H19: 599.66 | I19: 3789961
A20: 1004 | B20: 塑化類 | C20: ▲ | D20: 8.12 | E20: 528.94 | F20: 522.93 | G20: 531.86 | H20: 520.5 | I20: 3789961
A21: 1005 | B21: 紡織類 | C21: ▲ | D21: 5.9 | E21: 345.93 | F21: 341.97 | G21: 347.96 | H21: 336.36 | I21: 3789961
A22: 1006 | B22: 機電類 | C22: ▲ | D22: 31.59 | E22: 1449.05 | F22: 1417.85 | G22: 1451.78 | H22: 1414.69 | I22: 3789961
A23: 1007 | B23: 造紙類 | C23: ▲ | D23: 6.16 | E23: 170.73 | F23: 164.46 | G23: 170.99 | H23: 164.31 | I23: 3789961
A24: 1008 | B24: 營建類 | C24: ▲ | D24: 13.83 | E24: 278.98 | F24: 267.99 | G24: 279.18 | H24: 267.99 | I24: 3789961
A25: 1009 | B25: 金融類 | C25: ▲ | D25: 23.34 | E25: 812.1 | F25: 793.33 | G25: 813.53 | H25: 791.35 | I25: 3789961
A26: 1010 | B26: 不含電 | C26: ▲ | D26: 214.971 | E26: 9453.91 | F26: 9278.21 | G26: 9477.91 | H26: 9264.109 | I26: 3789961
A27: 1011 | B27: 水 泥 | C27: ▲ | D27: 1.44 | E27: 109.67 | F27: 108.65 | G27: 110.48 | H27: 107.78 | I27: 21996
A28: 1012 | B28: 食 品 | C28: ▲ | D28: 9.6 | E28: 608.44 | F28: 602.74 | G28: 609.47 | H28: 599.66 | I28: 69887
A29: 1013 | B29: 塑 膠 | C29: ▲ | D29: 1.59 | E29: 147.73 | F29: 146.73 | G29: 149.06 | H29: 145.9 | I29: 80886
A30: 1014 | B30: 紡 織 | C30: ▲ | D30: 5.9 | E30: 345.93 | F30: 341.97 | G30: 347.96 | H30: 336.36 | I30: 77379
A31: 1015 | B31: 電 機 | C31: ▲ | D31: 1.01 | E31: 63.67 | F31: 62.86 | G31: 63.67 | H31: 62.7 | I31: 32157
A32: 1016 | B32: 電 器 | C32: ▲ | D32: 0.69 | E32: 40.27 | F32: 39.67 | G32: 40.39 | H32: 39.67 | I32: 42850
A33: 1017 | B33: 化生醫 | C33: ▲ | D33: 1.74 | E33: 87.3 | F33: 85.86 | G33: 87.33 | H33: 85.57 | I33: 63792
A34: 1018 | B34: 玻 璃 | C34: ▲ | D34: 0.21 | E34: 43.9 | F34: 43.71 | G34: 44.29 | H34: 43.28 | I34: 2759 | Y34: =MATCH(4000,$A$1:$A$1500,0)-MATCH(1101,$A$1:$A$1500,0)-10 -> 734
A35: 1019 | B35: 造 紙 | C35: ▲ | D35: 6.16 | E35: 170.73 | F35: 164.46 | G35: 170.99 | H35: 164.31 | I35: 31399 | K35: =LARGE(K$46:K$725,$Y$35) -> -118.87 | L35: -166.73 | M35: -11.41 | N35: -5.78 | O35: -77.08 | P35: 0.01 | Q35: 18.38 | R35: 0.01 | S35: 6 | T35: 22.52 | Y35: =$Y$34*0.9 -> 660.6
A36: 1020 | B36: 鋼 鐵 | C36: ▲ | D36: 1.54 | E36: 96.8 | F36: 95.37 | G36: 96.9 | H36: 95.2 | I36: 94373 | K36: =LARGE(K$46:K$725,$Y$36) -> -17.43 | L36: -23.42 | M36: -3.1 | N36: -1.65 | O36: -53.58 | P36: 0.05 | Q36: 80.63 | R36: 11.25 | S36: 15.66 | T36: 139.69 | Y36: =$Y$34*0.8 -> 587.2
A37: 1021 | B37: 橡 膠 | C37: ▲ | D37: 5.89 | E37: 173.74 | F37: 168.68 | G37: 173.74 | H37: 167.74 | I37: 28489 | K37: =LARGE(K$46:K$725,$Y$37) -> -7.49 | L37: -8.09 | M37: -1.28 | N37: -0.68 | O37: -43.66 | P37: 0.07 | Q37: 107.95 | R37: 17.4 | S37: 23.41 | T37: 207.81 | Y37: =$Y$34*0.7 -> 513.8
A38: 1022 | B38: 汽 車 | C38: ▲ | D38: 3.86 | E38: 102.86 | F38: 99.01 | G38: 103.05 | H38: 98.9 | I38: 70346 | K38: =LARGE(K$46:K$725,$Y$38) -> -1.98 | L38: 0 | M38: 0 | N38: 0.03 | O38: -37.03 | P38: 0.09 | Q38: 134.87 | R38: 23.85 | S38: 34.07 | T38: 260 | Y38: =$Y$34*0.6 -> 440.4
A39: 1023 | B39: 電 子 | C39: ▲ | D39: 5.7 | E39: 259.75 | F39: 254.11 | G39: 260.26 | H39: 253.53 | I39: 1651454 | K39: =LARGE(K$46:K$725,$Y$39) -> 0.97 | L39: 2.62 | M39: 0.56 | N39: 0.43 | O39: -31.4 | P39: 0.12 | Q39: 157.97 | R39: 29.48 | S39: 44.5 | T39: 339.6 | Y39: =$Y$34*0.5 -> 367
A40: 1025 | B40: 營 造 | C40: ▲ | D40: 13.83 | E40: 278.98 | F40: 267.99 | G40: 279.18 | H40: 267.99 | I40: 259700 | K40: =LARGE(K$46:K$725,$Y$40) -> 2.47 | L40: 5.1 | M40: 1.08 | N40: 0.77 | O40: -24.05 | P40: 0.15 | Q40: 187.7 | R40: 34.71 | S40: 55.36 | T40: 474.74 | Y40: =$Y$34*0.4 -> 293.6
A41: 1026 | B41: 運 輸 | C41: ▲ | D41: 1.11 | E41: 85.81 | F41: 84.94 | G41: 85.83 | H41: 84.66 | I41: 93063 | K41: =LARGE(K$46:K$725,$Y$41) -> 4.9 | L41: 7.96 | M41: 1.84 | N41: 1.15 | O41: -15.78 | P41: 0.19 | Q41: 234.99 | R41: 40.17 | S41: 70.61 | T41: 699.11 | Y41: =$Y$34*0.3 -> 220.2
A42: 1027 | B42: 觀 光 | C42: ▲ | D42: 1.94 | E42: 130.09 | F42: 128.11 | G42: 130.26 | H42: 127.29 | I42: 6699 | K42: =LARGE(K$46:K$725,$Y$42) -> 8.4 | L42: 13.56 | M42: 2.64 | N42: 1.71 | O42: -4.66 | P42: 0.25 | Q42: 310.23 | R42: 47.44 | S42: 94.73 | T42: 1103.39 | Y42: =$Y$34*0.2 -> 146.8
A43: 1028 | B43: 金 融 | C43: ▲ | D43: 23.34 | E43: 812.1 | F43: 793.33 | G43: 813.53 | H43: 791.35 | I43: 723551 | K43: =LARGE(K$46:K$725,$Y$43) -> 15.98 | L43: 24.29 | M43: 4.47 | N43: 2.81 | O43: 8.91 | P43: 0.43 | Q43: 470.21 | R43: 55.9 | S43: 137.24 | T43: 2376.74 | Y43: =$Y$34*0.1 -> 73.4
A44: 1029 | B44: 百 貨 | C44: ▲ | D44: 1.89 | E44: 122.47 | F44: 120.93 | G44: 123.23 | H44: 120.59 | I44: 52026
A45: 1099 | B45: 其 他 | C45: ▲ | D45: 1.77 | E45: 114.49 | F45: 113.24 | G45: 114.6 | H45: 113.1 | I45: 66053 | K45: 營業利益率 | L45: 稅前淨利率 | M45: 股東權益報酬率 | N45: 資產報酬率 | O45: 營收成長率 | P45: 流動比率 | Q45: 負債比率 | R45: 總資產週轉率(次) | S45: 員工平均營業額(千元) | T45: 負債對淨值比率
A46: 1101 | B46: 台 泥 | C46: ▲ | D46: 0.3 | E46: 31.7 | F46: 31.45 | G46: 32.15 | H46: 31.2 | I46: 12731 | J46: =A46&B46 -> 1101台 泥 | K46: -1.57 | L46: 3.03 | M46: 0.25 | N46: 0.26 | O46: -12.09 | P46: 0.05 | Q46: 88.78 | R46: 26.27 | S46: 35.63 | T46: 223.1
A47: 1102 | B47: 亞 泥 | C47: ▲ | D47: 0.65 | E47: 35.65 | F47: 35.2 | G47: 35.9 | H47: 34.9 | I47: 5829 | J47: =A47&B47 -> 1102亞 泥 | K47: 17.46 | L47: 67.37 | M47: 2.38 | N47: 1.72 | O47: -3.64 | P47: 0.03 | Q47: 143.64 | R47: 31.49 | S47: 45.97 | T47: 3681.88
A48: 1103 | B48: 嘉 泥 | C48: ▲ | D48: 0.15 | E48: 15.25 | F48: 15.1 | G48: 15.5 | H48: 14.9 | I48: 1028 | J48: 1103嘉 泥 | K48: 1.49 | L48: -10.99 | M48: -0.2 | N48: -0.06 | O48: -1.95 | P48: 0.03 | Q48: 156.16 | R48: 34.46 | S48: 52.59 | T48: 910.33
A49: 1104 | B49: 環 泥 | C49: ▲ | D49: 0.05 | E49: 14.95 | F49: 14.8 | G49: 14.95 | H49: 14.7 | I49: 826 | J49: 1104環 泥 | K49: -2.62 | L49: -4.32 | M49: -0.49 | N49: -0.26 | O49: -15.25 | P49: 0.04 | Q49: 72.64 | R49: 30.92 | S49: 44.75 | T49: 449.58
A50: 1107 | B50: 建 台 | C50: ▼ | D50: -0.05 | E50: 1.18 | F50: 1.2 | G50: 1.2 | H50: 1.18 | I50: 3 | J50: 1107建 台 | K50: -145.87 | L50: -354.28 | M50: N/A | N50: -0.84 | O50: -67.92 | P50: 0 | Q50: 11.9 | R50: 112.84 | S50: -878.68 | T50: -48.4
A51: 1108 | B51: 幸 福 | C51: ▲ | D51: 0.05 | E51: 7.13 | F51: 7.04 | G51: 7.15 | H51: 7.03 | I51: 355 | J51: 1108幸 福 | K51: 4.79 | L51: 2.33 | M51: 0.33 | N51: 0.29 | O51: -25.71 | P51: 0.07 | Q51: 75.69 | R51: 50.33 | S51: 101.31 | T51: 166
A52: 1109 | B52: 信 大 | D52: 0 | E52: 9.44 | F52: 9.44 | G52: 9.46 | H52: 9.36 | I52: 188 | J52: 1109信 大 | K52: 10.69 | L52: 12.88 | M52: 0.66 | N52: 0.61 | O52: -24.05 | P52: 0.05 | Q52: 1547.4 | R52: 7.92 | S52: 8.6 | T52: 317.38
A53: 1110 | B53: 東 泥 | C53: ▲ | D53: 0.25 | E53: 11.7 | F53: 11.6 | G53: 11.9 | H53: 11.45 | I53: 1039 | J53: 1110東 泥 | K53: 7.43 | L53: 10.01 | M53: 0.43 | N53: 0.37 | O53: -7.91 | P53: 0.04 | Q53: 267.77 | R53: 13.64 | S53: 15.8 | T53: 169.19
A54: 1201 | B54: 味 全 | C54: ▲ | D54: 1.25 | E54: 37.6 | F54: 36.3 | G54: 37.7 | H54: 35.9 | I54: 13386 | J54: 1201味 全 | K54: 7.78 | L54: 6.57 | M54: 3.46 | N54: 1.67 | O54: 12.72 | P54: 0.26 | Q54: 140.58 | R54: 52.72 | S54: 111.53 | T54: 131.1
A55: 1203 | B55: 味 王 | C55: ▲ | D55: 1 | E55: 26.6 | F55: 25.8 | G55: 26.6 | H55: 25.4 | I55: 3162 | J55: 1203味 王 | K55: 25.79 | L55: 30.08 | M55: 7.1 | N55: 4.9 | O55: 115.73 | P55: 0.17 | Q55: 144.73 | R55: 24.69 | S55: 32.78 | T55: 542.56
A56: 1210 | B56: 大 成 | C56: ▲ | D56: 1.6 | E56: 36.25 | F56: 34.85 | G56: 36.45 | H56: 34.85 | I56: 5124 | J56: 1210大 成 | K56: 9.77 | L56: 11.61 | M56: 5 | N56: 3.47 | O56: -8.84 | P56: 0.37 | Q56: 177.28 | R56: 28.33 | S56: 39.54 | T56: 450.11
A57: 1213 | B57: 大 飲 | C57: ▲ | D57: 0.1 | E57: 8.71 | F57: 8.6 | G57: 8.74 | H57: 8.6 | I57: 37 | J57: 1213大 飲 | K57: 2.41 | L57: 3.89 | M57: 0.72 | N57: 0.56 | O57: 5.7 | P57: 0.2 | Q57: 227.35 | R57: 24.43 | S57: 32.33 | T57: 221.99
A58: 1215 | B58: 卜 蜂 | C58: ▲ | D58: 0.7 | E58: 17.3 | F58: 16.45 | G58: 17.65 | H58: 16.45 | I58: 5396 | J58: 1215卜 蜂 | K58: 6.11 | L58: 5.73 | M58: 5.15 | N58: 3.31 | O58: -1.88 | P58: 0.76 | Q58: 239.71 | R58: 31.06 | S58: 45.05 | T58: 259.1
A59: 1216 | B59: 統 一 | C59: ▲ | D59: 0.2 | E59: 34 | F59: 33.6 | G59: 34.25 | H59: 33.6 | I59: 7604 | J59: 1216統 一 | K59: 4.93 | L59: 21.28 | M59: 3.54 | N59: 2.31 | O59: -16.45 | P59: 0.11 | Q59: 105.37 | R59: 37.16 | S59: 59.14 | T59: 911.23
A60: 1217 | B60: 愛之味 | C60: ▲ | D60: 0.1 | E60: 11.35 | F60: 11.25 | G60: 11.5 | H60: 11.2 | I60: 11939 | J60: 1217愛之味 | K60: 1.07 | L60: 10.29 | M60: 1.94 | N60: 1.29 | O60: -2.67 | P60: 0.12 | Q60: 108.68 | R60: 42.52 | S60: 73.97 | T60: 332.91
A61: 1218 | B61: 泰 山 | C61: ▲ | D61: 0.25 | E61: 12 | F61: 11.95 | G61: 12.25 | H61: 11.9 | I61: 5686 | J61: 1218泰 山 | K61: 3.9 | L61: 2.73 | M61: 1.29 | N61: 0.76 | O61: 4.97 | P61: 0.2 | Q61: 113.18 | R61: 57.85 | S61: 137.24 | T61: 221.23
A62: 1219 | B62: 福 壽 | C62: ▲ | D62: 0.25 | E62: 11.6 | F62: 11.55 | G62: 11.9 | H62: 11.4 | I62: 4076 | J62: 1219福 壽 | K62: 2.16 | L62: 3.35 | M62: 1.66 | N62: 1.1 | O62: -6.86 | P62: 0.41 | Q62: 386.9 | R62: 35.88 | S62: 55.95 | T62: 252.83
A63: 1220 | B63: 台 榮 | D63: 0 | E63: 6.12 | F63: 6.16 | G63: 6.2 | H63: 6.1 | I63: 114 | J63: 1220台 榮 | K63: -0.73 | L63: -6.85 | M63: -1.96 | N63: -1.46 | O63: -32.61 | P63: 0.24 | Q63: 279.49 | R63: 24.19 | S63: 31.91 | T63: 276.43
A64: 1225 | B64: 福懋油 | C64: ▲ | D64: 0.65 | E64: 12.95 | F64: 12.6 | G64: 13.15 | H64: 12.6 | I64: 4935 | J64: 1225福懋油 | K64: 3.81 | L64: 2.55 | M64: 1.7 | N64: 0.92 | O64: -15.78 | P64: 0.44 | Q64: 237.9 | R64: 52.14 | S64: 108.96 | T64: 316.13
A65: 1227 | B65: 佳 格 | C65: ▲ | D65: 0.2 | E65: 29.6 | F65: 29.4 | G65: 29.8 | H65: 29 | I65: 1013 | J65: 1227佳 格 | K65: 21.67 | L65: 18.6 | M65: 6.72 | N65: 5.26 | O65: 35.91 | P65: 0.39 | Q65: 258.31 | R65: 20.78 | S65: 26.24 | T65: 515.65
A66: 1229 | B66: 聯 華 | C66: ▲ | D66: 0.85 | E66: 15.2 | F66: 14.45 | G66: 15.2 | H66: 14.4 | I66: 3575 | J66: 1229聯 華 | K66: 3.44 | L66: 5.33 | M66: 0.23 | N66: 0.22 | O66: -29.53 | P66: 0.04 | Q66: 126.18 | R66: 22.34 | S66: 28.76 | T66: 516.17
A67: 1231 | B67: 聯華食 | C67: ▲ | D67: 0.05 | E67: 12.1 | F67: 12.1 | G67: 12.25 | H67: 12 | I67: 252 | J67: 1231聯華食 | K67: 1.05 | L67: 2.36 | M67: 1.05 | N67: 0.7 | O67: -3.67 | P67: 0.36 | Q67: 261.39 | R67: 38.13 | S67: 61.63 | T67: 299.19
A68: 1232 | B68: 大統益 | C68: ▲ | D68: 0.6 | E68: 36.4 | F68: 37.05 | G68: 37.05 | H68: 36.05 | I68: 626 | J68: 1232大統益 | K68: 5.57 | L68: 7.41 | M68: 6.11 | N68: 4.41 | O68: -27.43 | P68: 0.78 | Q68: 214.39 | R68: 27.29 | S68: 37.54 | T68: 240.01
A69: 1233 | B69: 天 仁 | C69: ▲ | D69: 0.05 | E69: 34.65 | F69: 34.6 | G69: 35.1 | H69: 34.5 | I69: 70 | J69: 1233天 仁 | K69: 13.44 | L69: 14.56 | M69: 4.47 | N69: 3.31 | O69: -3.76 | P69: 0.27 | Q69: 303.13 | R69: 24.4 | S69: 32.28 | T69: 143.68
A70: 1234 | B70: 黑 松 | C70: ▲ | D70: 0.1 | E70: 16.4 | F70: 16.3 | G70: 16.45 | H70: 16.1 | I70: 1732 | J70: 1234黑 松 | K70: 2.85 | L70: 9.17 | M70: 0.61 | N70: 0.55 | O70: 5.05 | P70: 0.07 | Q70: 357.79 | R70: 10.92 | S70: 12.26 | T70: 418.85
A71: 1235 | B71: 興 泰 | C71: ▼ | D71: -0.8 | E71: 35 | F71: 35.8 | G71: 35.8 | H71: 35 | I71: 7 | J71: 1235興 泰 | K71: -4.75 | L71: -10.26 | M71: -1.25 | N71: -0.76 | O71: -32.5 | P71: 0.1 | Q71: 259.54 | R71: 28.81 | S71: 40.47 | T71: 518.58
A72: 1236 | B72: 宏 亞 | C72: ▲ | D72: 0.35 | E72: 16.8 | F72: 16.8 | G72: 16.8 | H72: 16.45 | I72: 102 | J72: 1236宏 亞 | K72: 11.3 | L72: 15.01 | M72: 4.41 | N72: 2.91 | O72: -16.36 | P72: 0.25 | Q72: 171.52 | R72: 31.1 | S72: 45.14 | T72: 142.33
A73: 1301 | B73: 臺 塑 | C73: ▲ | D73: 0.3 | E73: 58.8 | F73: 58.6 | G73: 59.3 | H73: 57.9 | I73: 7838 | J73: 1301臺 塑 | K73: 4.62 | L73: 9.82 | M73: 1.59 | N73: 1.16 | O73: -36.76 | P73: 0.12 | Q73: 263.69 | R73: 31.23 | S73: 45.41 | T73: 325.37
A74: 1303 | B74: 南 亞 | C74: ▲ | D74: 0.6 | E74: 43.2 | F74: 43 | G74: 43.75 | H74: 42.65 | I74: 5445 | J74: 1303南 亞 | K74: 0.86 | L74: -13.62 | M74: -1.53 | N74: -0.89 | O74: -50.57 | P74: 0.09 | Q74: 267.06 | R74: 34.71 | S74: 53.17 | T74: 382.41
A75: 1304 | B75: 臺 聚 | C75: ▲ | D75: 0.15 | E75: 14.75 | F75: 14.6 | G75: 14.85 | H75: 14.5 | I75: 5182 | J75: 1304臺 聚 | K75: 10.52 | L75: 20 | M75: 3.29 | N75: 2.51 | O75: -38.88 | P75: 0.16 | Q75: 309.44 | R75: 25.37 | S75: 33.99 | T75: 1042.89
A76: 1305 | B76: 華 夏 | C76: ▲ | D76: 0.25 | E76: 11.85 | F76: 11.6 | G76: 11.95 | H76: 11.5 | I76: 8248 | J76: 1305華 夏 | K76: 8.16 | L76: 19.56 | M76: 5.79 | N76: 3.17 | O76: -37.73 | P76: 0.18 | Q76: 248.68 | R76: 46.15 | S76: 85.71 | T76: 207.9
A77: 1307 | B77: 三 芳 | C77: ▲ | D77: 0.35 | E77: 27.7 | F77: 27.3 | G77: 27.75 | H77: 27.3 | I77: 130 | J77: 1307三 芳 | K77: 3.6 | L77: 22.54 | M77: 6.39 | N77: 3.85 | O77: 9.63 | P77: 0.16 | Q77: 117.33 | R77: 39.17 | S77: 64.4 | T77: 314.5
A78: 1308 | B78: 亞 聚 | C78: ▲ | D78: 0.4 | E78: 20.3 | F78: 20 | G78: 20.45 | H78: 20 | I78: 1568 | J78: 1308亞 聚 | K78: 16.61 | L78: 23.98 | M78: 3.8 | N78: 3.29 | O78: -40.48 | P78: 0.17 | Q78: 440.56 | R78: 14.4 | S78: 16.83 | T78: 1019.42
A79: 1309 | B79: 臺達化 | C79: ▲ | D79: 0.08 | E79: 7.93 | F79: 7.99 | G79: 8.02 | H79: 7.85 | I79: 980 | J79: 1309臺達化 | K79: 1.22 | L79: 11.76 | M79: 5.17 | N79: 2.57 | O79: -34.06 | P79: 0.26 | Q79: 156.75 | R79: 53.29 | S79: 114.08 | T79: 332.51
A80: 1310 | B80: 台 苯 | C80: ▲ | D80: 0.15 | E80: 11.7 | F80: 11.6 | G80: 11.7 | H80: 11.5 | I80: 3076 | J80: 1310台 苯 | K80: 16.54 | L80: 15.55 | M80: 6.51 | N80: 4.68 | O80: -38.45 | P80: 0.3 | Q80: 112.86 | R80: 30.82 | S80: 44.55 | T80: 738.74
A81: 1312 | B81: 國 喬 | C81: ▲ | D81: 0.15 | E81: 10.4 | F81: 10.25 | G81: 10.45 | H81: 10.2 | I81: 12523 | J81: 1312國 喬 | K81: 13.22 | L81: 35.5 | M81: 9.27 | N81: 4.82 | O81: -54.01 | P81: 0.14 | Q81: 59.55 | R81: 47.39 | S81: 90.08 | T81: 150.91
A82: 1313 | B82: 聯 成 | C82: ▲ | D82: 0.1 | E82: 14 | F82: 13.8 | G82: 14.1 | H82: 13.65 | I82: 3410 | J82: 1313聯 成 | K82: -0.09 | L82: 16.47 | M82: 0.99 | N82: 0.81 | O82: -46.61 | P82: 0.06 | Q82: 269.76 | R82: 22.95 | S82: 29.78 | T82: 975.24
A83: 1314 | B83: 中石化 | C83: ▲ | D83: 0.15 | E83: 10.3 | F83: 10.2 | G83: 10.4 | H83: 10.15 | I83: 19137 | J83: 1314中石化 | K83: -7.31 | L83: -8.27 | M83: -1.6 | N83: -0.6 | O83: -60.69 | P83: 0.09 | Q83: 228.81 | R83: 53.94 | S83: 117.09 | T83: 182.85
A84: 1315 | B84: 達 新 | D84: 0 | E84: 22.4 | F84: 22.4 | G84: 22.8 | H84: 22 | I84: 765 | J84: 1315達 新 | K84: 4.23 | L84: 7.38 | M84: 0.62 | N84: 0.48 | O84: -30.43 | P84: 0.07 | Q84: 418.54 | R84: 24.03 | S84: 31.63 | T84: 475.16
A85: 1316 | B85: 上 曜 | C85: ▼ | D85: -0.05 | E85: 5.55 | F85: 5.6 | G85: 5.68 | H85: 5.5 | I85: 26 | J85: 1316上 曜 | K85: -9.74 | L85: 4.41 | M85: 1.51 | N85: 1.32 | O85: -31.79 | P85: 0.06 | Q85: 442.74 | R85: 11.75 | S85: 13.32 | T85: 617.86
A86: 1319 | B86: 東 陽 | C86: ▲ | D86: 0.25 | E86: 31.7 | F86: 31.9 | G86: 32.7 | H86: 31.6 | I86: 5209 | J86: 1319東 陽 | K86: 16.34 | L86: 21.24 | M86: 3.7 | N86: 2.55 | O86: -14.17 | P86: 0.14 | Q86: 147.41 | R86: 31.98 | S86: 47.02 | T86: 217.64
A87: 1321 | B87: 大 洋 | C87: ▼ | D87: -0.2 | E87: 20 | F87: 20.2 | G87: 20.35 | H87: 20 | I87: 764 | J87: 1321大 洋 | K87: 1.59 | L87: -1.93 | M87: -0.96 | N87: -0.54 | O87: -29.57 | P87: 0.23 | Q87: 129.26 | R87: 38.42 | S87: 62.4 | T87: 376.48
A88: 1323 | B88: 永 裕 | C88: ▲ | D88: 0.05 | E88: 11.45 | F88: 12 | G88: 12 | H88: 11.4 | I88: 48 | J88: 1323永 裕 | K88: 4.4 | L88: 5.69 | M88: 1.31 | N88: 0.86 | O88: -4.02 | P88: 0.15 | Q88: 138.68 | R88: 43.1 | S88: 75.73 | T88: 227.22
A89: 1324 | B89: 地 球 | C89: ▲ | D89: 0.15 | E89: 11.35 | F89: 11.15 | G89: 11.35 | H89: 11.1 | I89: 83 | J89: 1324地 球 | K89: 6.07 | L89: 6.88 | M89: 1.33 | N89: 1.05 | O89: -15.58 | P89: 0.21 | Q89: 292.24 | R89: 20.04 | S89: 25.07 | T89: 339.6
A90: 1325 | B90: 恆 大 | C90: ▲ | D90: 0.1 | E90: 18.85 | F90: 19.15 | G90: 19.15 | H90: 18.55 | I90: 927 | J90: 1325恆 大 | K90: 18.96 | L90: 20.45 | M90: 2.81 | N90: 2.49 | O90: -34.33 | P90: 0.13 | Q90: 803.37 | R90: 11.35 | S90: 12.8 | T90: 241.92
A91: 1326 | B91: 臺 化 | C91: ▲ | D91: 0.7 | E91: 50.1 | F91: 50 | G91: 50.7 | H91: 49.45 | I91: 3300 | J91: 1326臺 化 | K91: -9.18 | L91: -6.05 | M91: -1.44 | N91: -0.75 | O91: -41.62 | P91: 0.14 | Q91: 134.87 | R91: 39.18 | S91: 64.43 | T91: 248.57
A92: 1333 | B92: 恩得利 | C92: ▲ | D92: 0.05 | E92: 3.9 | F92: 3.8 | G92: 3.9 | H92: 3.78 | I92: 199 | J92: 1333恩得利 | K92: -20.36 | L92: -50.29 | M92: -6.66 | N92: -3.2 | O92: -36.52 | P92: 0.07 | Q92: 172.26 | R92: 37.16 | S92: 59.14 | T92: 2016.21
A93: 1336 | B93: 台 翰 | C93: ▼ | D93: -0.15 | E93: 15.85 | F93: 16 | G93: 16.2 | H93: 15.85 | I93: 11 | J93: 1336台 翰 | K93: 6.84 | L93: 0.53 | M93: 0.23 | N93: 0.2 | O93: -31.15 | P93: 0.09 | Q93: 311.67 | R93: 17.4 | S93: 21.06 | T93: 1855.64
A94: 1402 | B94: 遠 紡 | C94: ▲ | D94: 0.95 | E94: 38.95 | F94: 39 | G94: 39.3 | H94: 37.45 | I94: 21896 | J94: 1402遠 紡 | K94: -0.65 | L94: 16.54 | M94: 1.77 | N94: 1.18 | O94: -30.46 | P94: 0.06 | Q94: 119.6 | R94: 38.29 | S94: 62.05 | T94: 887.62
A95: 1409 | B95: 新 纖 | C95: ▼ | D95: -0.05 | E95: 8.8 | F95: 8.65 | G95: 8.9 | H95: 8.65 | I95: 8734 | J95: 1409新 纖 | K95: 0.94 | L95: 2.42 | M95: 0.6 | N95: 0.46 | O95: -32.02 | P95: 0.15 | Q95: 102.16 | R95: 49.85 | S95: 99.42 | T95: 265.16
A96: 1410 | B96: 南 染 | C96: ▲ | D96: 0.15 | E96: 13.15 | F96: 12.9 | G96: 13.15 | H96: 12.8 | I96: 404 | J96: 1410南 染 | K96: -11.4 | L96: -12.2 | M96: -0.7 | N96: -0.58 | O96: -20.23 | P96: 0.03 | Q96: 1181.76 | R96: 16.51 | S96: 19.78 | T96: 140.12
A97: 1413 | B97: 宏 洲 | C97: ▼ | D97: -0.05 | E97: 1.92 | F97: 1.98 | G97: 2 | H97: 1.92 | I97: 668 | J97: 1413宏 洲 | K97: -6.34 | L97: -7.35 | M97: -3.61 | N97: -1.65 | O97: -51.11 | P97: 0.19 | Q97: 93.53 | R97: 50.94 | S97: 103.84 | T97: 82.39
A98: 1414 | B98: 東 和 | C98: ▼ | D98: -0.22 | E98: 5.14 | F98: 5.13 | G98: 5.27 | H98: 5.1 | I98: 2405 | J98: 1414東 和 | K98: -8.79 | L98: -10.51 | M98: -6.07 | N98: -1.77 | O98: -21.16 | P98: 0.19 | Q98: 43.97 | R98: 68.16 | S98: 214.08 | T98: 48.89
A99: 1416 | B99: 廣 豐 | C99: ▼ | D99: -0.17 | E99: 6.95 | F99: 7.08 | G99: 7.08 | H99: 6.83 | I99: 4715 | J99: 1416廣 豐 | K99: -3.49 | L99: -18.78 | M99: -0.26 | N99: -0.12 | O99: -39.61 | P99: 0.01 | Q99: 105.6 | R99: 23.49 | S99: 30.7 | T99: 547.32
A100: 1417 | B100: 嘉 裕 | C100: ▲ | D100: 0.11 | E100: 6.2 | F100: 6.14 | G100: 6.23 | H100: 6.05 | I100: 2069 | J100: 1417嘉 裕 | K100: -12.18 | L100: -1.86 | M100: 0.04 | N100: 0.08 | O100: 9.56 | P100: 0.06 | Q100: 126.35 | R100: 20.24 | S100: 25.37 | T100: 444.03
A101: 1418 | B101: 東 華 | C101: ▲ | D101: 0.02 | E101: 4.17 | F101: 4.11 | G101: 4.24 | H101: 4.1 | I101: 210 | J101: 1418東 華 | K101: 1.47 | L101: 0.91 | M101: -0.2 | N101: 0.13 | O101: -46.6 | P101: 0.19 | Q101: 49.54 | R101: 60 | S101: 150.01 | T101: 69.29
A102: 1419 | B102: 新 紡 | C102: ▲ | D102: 2.45 | E102: 37.75 | F102: 35.75 | G102: 37.75 | H102: 35.75 | I102: 10936 | J102: 1419新 紡 | K102: -8.9 | L102: -11.73 | M102: -0.33 | N102: -0.12 | O102: 14.2 | P102: 0.02 | Q102: 33.52 | R102: 38.69 | S102: 63.09 | T102: 135.56
A103: 1423 | B103: 利 華 | C103: ▲ | D103: 0.04 | E103: 5.48 | F103: 5.48 | G103: 5.55 | H103: 5.33 | I103: 613 | J103: 1423利 華 | K103: -11.12 | L103: -8.32 | M103: -0.48 | N103: -0.42 | O103: -51.5 | P103: 0.09 | Q103: 4254.25 | R103: 12.55 | S103: 14.35 | T103: 516.11
A104: 1432 | B104: 大魯閣 | C104: ▼ | D104: -4.58 | E104: 0 | F104: 0 | G104: 0 | H104: 0 | I104: 0 | J104: 1432大魯閣 | K104: -3992.93 | L104: -8161.31 | M104: -8.06 | N104: -2.24 | O104: -97.96 | P104: 0 | Q104: 55.65 | R104: 70.81 | S104: 242.53 | T104: 51812.25
A105: 1434 | B105: 福 懋 | C105: ▲ | D105: 0.45 | E105: 22.85 | F105: 22.5 | G105: 23.1 | H105: 22.45 | I105: 1073 | J105: 1434福 懋 | K105: 5.04 | L105: 1.43 | M105: 0.05 | N105: 0.08 | O105: -25.43 | P105: 0.1 | Q105: 400.4 | R105: 22.57 | S105: 29.14 | T105: 592.96
A106: 1435 | B106: 中 福 | C106: ▲ | D106: 0.02 | E106: 2.84 | F106: 2.81 | G106: 2.85 | H106: 2.8 | I106: 76 | J106: 1435中 福 | K106: -10.59 | L106: -35.36 | M106: -0.36 | N106: -0.14 | O106: -75.8 | P106: 0 | Q106: 5608.54 | R106: 49.21 | S106: 96.89 | T106: 107.95
A107: 1436 | B107: 福 益 | C107: ▼ | D107: -0.01 | E107: 8.27 | F107: 8.32 | G107: 8.32 | H107: 8.01 | I107: 224 | J107: 1436福 益 | K107: -829.91 | L107: -1085.05 | M107: -0.49 | N107: -0.49 | O107: 16.29 | P107: 0 | Q107: 9152.96 | R107: 1.53 | S107: 1.55 | T107: 118374.43
A108: 1437 | B108: 勤 益 | D108: 0 | E108: 16.4 | F108: 16.25 | G108: 16.45 | H108: 15.9 | I108: 2557 | J108: 1437勤 益 | K108: -13.77 | L108: -28.34 | M108: -1.47 | N108: -1.08 | O108: -45.85 | P108: 0.06 | Q108: 240.15 | R108: 22.13 | S108: 28.41 | T108: 694.6
A109: 1438 | B109: 裕 豐 | C109: ▼ | D109: -1 | E109: 0 | F109: 0 | G109: 0 | H109: 0 | I109: 0 | J109: 1438裕 豐 | K109: -156.71 | L109: -418.06 | M109: -26.46 | N109: -0.8 | O109: -42.07 | P109: 0 | Q109: 34.8 | R109: 95.02 | S109: 1907.67 | T109: 0
A110: 1439 | B110: 中 和 | C110: ▲ | D110: 0.45 | E110: 15.25 | F110: 14.5 | G110: 15.25 | H110: 14.5 | I110: 132 | J110: 1439中 和 | K110: 5.6 | L110: 16.08 | M110: 0.65 | N110: 0.52 | O110: -50.9 | P110: 0.03 | Q110: 3917.33 | R110: 20.42 | S110: 25.66 | T110: 107.2
A111: 1440 | B111: 南 紡 | D111: 0 | E111: 11 | F111: 11 | G111: 11.1 | H111: 10.65 | I111: 9971 | J111: =A111&B111 -> 1440南 紡 | K111: 1.08 | L111: 2.56 | M111: 0.25 | N111: 0.2 | O111: -16.44 | P111: 0.09 | Q111: 189.57 | R111: 22.13 | S111: 28.41 | T111: 194.53
A112: 1441 | B112: 大 東 | C112: ▲ | D112: 0.08 | E112: 6.25 | F112: 6.2 | G112: 6.3 | H112: 6.17 | I112: 799 | J112: 1441大 東 | K112: -9.19 | L112: -7.12 | M112: -4.19 | N112: -0.95 | O112: -25.77 | P112: 0.21 | Q112: 66.13 | R112: 70.93 | S112: 244.03 | T112: 87.26
A113: 1442 | B113: 名 軒 | C113: ▲ | D113: 0.35 | E113: 14.9 | F113: 14.6 | G113: 15 | H113: 14.6 | I113: 821 | J113: 1442名 軒 | K113: 7.23 | L113: 4.63 | M113: 0.26 | N113: 0.26 | O113: 39.22 | P113: 0.05 | Q113: 185.36 | R113: 41.53 | S113: 71.04 | T113: 2056.8
A114: 1443 | B114: 立 益 | C114: ▲ | D114: 0.01 | E114: 2.51 | F114: 2.5 | G114: 2.54 | H114: 2.44 | I114: 361 | J114: 1443立 益 | K114: -16.89 | L114: -13.98 | M114: -1.6 | N114: -0.63 | O114: 33.38 | P114: 0.05 | Q114: 85.55 | R114: 52.96 | S114: 112.6 | T114: 97.62
A115: 1444 | B115: 力 麗 | C115: ▼ | D115: -0.16 | E115: 5.27 | F115: 5.37 | G115: 5.39 | H115: 5.2 | I115: 2010 | J115: 1444力 麗 | K115: 1.18 | L115: 2.55 | M115: 0.53 | N115: 0.33 | O115: -29.86 | P115: 0.12 | Q115: 154.03 | R115: 40.63 | S115: 68.45 | T115: 253.27
A116: 1445 | B116: 大 宇 | C116: ▲ | D116: 0.07 | E116: 5.88 | F116: 5.91 | G116: 5.91 | H116: 5.72 | I116: 72 | J116: 1445大 宇 | K116: 1.29 | L116: 3.25 | M116: 0.72 | N116: 0.61 | O116: -20.17 | P116: 0.2 | Q116: 643.77 | R116: 15.01 | S116: 17.66 | T116: 208.4
A117: 1446 | B117: 宏 和 | C117: ▼ | D117: -0.01 | E117: 8.44 | F117: 8.47 | G117: 8.47 | H117: 7.88 | I117: 42 | J117: 1446宏 和 | K117: -0.81 | L117: 4.64 | M117: 0.62 | N117: 0.52 | O117: -23.24 | P117: 0.08 | Q117: 41.53 | R117: 32.11 | S117: 47.29 | T117: 284.59
A118: 1447 | B118: 力 鵬 | C118: ▼ | D118: -0.18 | E118: 6.01 | F118: 6.13 | G118: 6.13 | H118: 5.98 | I118: 2414 | J118: 1447力 鵬 | K118: 3.94 | L118: 4.22 | M118: 3 | N118: 1.59 | O118: -38.12 | P118: 0.33 | Q118: 70.49 | R118: 53.57 | S118: 115.36 | T118: 95.75
A119: 1449 | B119: 佳 和 | C119: ▼ | D119: -0.05 | E119: 1.75 | F119: 1.89 | G119: 1.92 | H119: 1.75 | I119: 2906 | J119: 1449佳 和 | K119: -48.05 | L119: -66.17 | M119: -24.25 | N119: -6.07 | O119: -46.59 | P119: 0.09 | Q119: 148.3 | R119: 75.66 | S119: 310.87 | T119: 218.58
A120: 1451 | B120: 年 興 | C120: ▲ | D120: 0.15 | E120: 11.15 | F120: 11 | G120: 11.25 | H120: 11 | I120: 1892 | J120: 1451年 興 | K120: 4.58 | L120: 15.02 | M120: 2.18 | N120: 1.71 | O120: -30.94 | P120: 0.13 | Q120: 137.66 | R120: 24.77 | S120: 32.92 | T120: 949.56
A121: 1452 | B121: 宏 益 | C121: ▲ | D121: 0.11 | E121: 6.15 | F121: 5.9 | G121: 6.19 | H121: 5.9 | I121: 41 | J121: 1452宏 益 | K121: 1.29 | L121: 2.03 | M121: 0.29 | N121: 0.27 | O121: -47.77 | P121: 0.18 | Q121: 1279.01 | R121: 6.46 | S121: 6.91 | T121: 324.66
A122: 1453 | B122: 大 將 | C122: ▲ | D122: 0.08 | E122: 7.38 | F122: 7.35 | G122: 7.5 | H122: 7.3 | I122: 44 | J122: 1453大 將 | K122: 11.29 | L122: 8.07 | M122: 1.38 | N122: 0.98 | O122: -74.29 | P122: 0.1 | Q122: 173.66 | R122: 39.22 | S122: 64.52 | T122: 193.57
A123: 1454 | B123: 台 富 | C123: ▼ | D123: -0.12 | E123: 5.53 | F123: 5.63 | G123: 5.82 | H123: 5.52 | I123: 38 | J123: 1454台 富 | K123: -5.54 | L123: -4.9 | M123: -1 | N123: -0.68 | O123: -33.25 | P123: 0.2 | Q123: 187.7 | R123: 26.63 | S123: 36.29 | T123: 167.98
A124: 1455 | B124: 集 盛 | C124: ▲ | D124: 0.01 | E124: 5.19 | F124: 5.24 | G124: 5.24 | H124: 5.17 | I124: 225 | J124: 1455集 盛 | K124: 4.08 | L124: 4.28 | M124: 1.67 | N124: 1.1 | O124: -34.37 | P124: 0.3 | Q124: 89.51 | R124: 41.04 | S124: 69.61 | T124: 103.99
A125: 1456 | B125: 怡 華 | C125: ▼ | D125: -0.01 | E125: 1.07 | F125: 1.06 | G125: 1.09 | H125: 1.06 | I125: 34 | J125: 1456怡 華 | K125: -9.63 | L125: -17.47 | M125: -12.09 | N125: -2.15 | O125: -34.75 | P125: 0.15 | Q125: 82.6 | R125: 79.21 | S125: 381.09 | T125: 65.5
A126: 1457 | B126: 宜 進 | C126: ▲ | D126: 0.12 | E126: 4.32 | F126: 4.2 | G126: 4.34 | H126: 4.2 | I126: 330 | J126: 1457宜 進 | K126: 2.51 | L126: 2.07 | M126: 0.48 | N126: 0.46 | O126: -42.65 | P126: 0.14 | Q126: 76.66 | R126: 38.82 | S126: 63.45 | T126: 182.26
A127: 1459 | B127: 聯 發 | C127: ▼ | D127: -0.01 | E127: 7.29 | F127: 7.12 | G127: 7.3 | H127: 7.12 | I127: 52 | J127: 1459聯 發 | K127: 10.74 | L127: 31.38 | M127: 5.6 | N127: 2.84 | O127: -24.29 | P127: 0.09 | Q127: 91.06 | R127: 51.27 | S127: 105.2 | T127: 211.59
A128: 1460 | B128: 宏 遠 | D128: 0 | E128: 5.32 | F128: 5.32 | G128: 5.37 | H128: 5.3 | I128: 201 | J128: 1460宏 遠 | K128: 5.3 | L128: 3.92 | M128: 0.84 | N128: 0.59 | O128: -6.86 | P128: 0.13 | Q128: 226.53 | R128: 38.75 | S128: 63.27 | T128: 245.64
A129: 1463 | B129: 強 盛 | C129: ▲ | D129: 0.11 | E129: 5.15 | F129: 5.18 | G129: 5.18 | H129: 5.1 | I129: 39 | J129: 1463強 盛 | K129: -4.18 | L129: -3.59 | M129: -0.29 | N129: -0.26 | O129: -28.89 | P129: 0.07 | Q129: 371.17 | R129: 10.55 | S129: 11.8 | T129: 296.73
A130: 1464 | B130: 得 力 | C130: ▼ | D130: -0.1 | E130: 5.21 | F130: 5.3 | G130: 5.31 | H130: 5.12 | I130: 38 | J130: 1464得 力 | K130: -9.25 | L130: -2.2 | M130: -0.31 | N130: -0.12 | O130: -38.16 | P130: 0.08 | Q130: 79.99 | R130: 33.98 | S130: 51.47 | T130: 187.31
A131: 1465 | B131: 偉 全 | C131: ▲ | D131: 0.14 | E131: 9.35 | F131: 9.21 | G131: 9.38 | H131: 9.2 | I131: 37 | J131: 1465偉 全 | K131: -0.71 | L131: 3.45 | M131: 0.58 | N131: 0.52 | O131: -20.72 | P131: 0.16 | Q131: 555.83 | R131: 10.37 | S131: 11.56 | T131: 284.5
A132: 1466 | B132: 聚 隆 | C132: ▲ | D132: 0.11 | E132: 3.56 | F132: 3.52 | G132: 3.56 | H132: 3.51 | I132: 25 | J132: 1466聚 隆 | K132: -1.5 | L132: -1.87 | M132: -3.66 | N132: -0.73 | O132: -42.87 | P132: 0.38 | Q132: 84.49 | R132: 72.65 | S132: 265.63 | T132: 103.74
A133: 1467 | B133: 南 緯 | C133: ▼ | D133: -0.05 | E133: 5.97 | F133: 6 | G133: 6.07 | H133: 5.96 | I133: 210 | J133: 1467南 緯 | K133: 3.96 | L133: 5.71 | M133: 2.64 | N133: 1.14 | O133: -13.32 | P133: 0.22 | Q133: 109.68 | R133: 61.53 | S133: 159.96 | T133: 480.24
A134: 1468 | B134: 昶 和 | C134: ▲ | D134: 0.15 | E134: 11.1 | F134: 10.95 | G134: 11.1 | H134: 10.95 | I134: 86 | J134: 1468昶 和 | K134: -3.31 | L134: -9.58 | M134: -0.81 | N134: -0.37 | O134: -35.32 | P134: 0.05 | Q134: 144.07 | R134: 38.34 | S134: 62.18 | T134: 196.59
A135: 1469 | B135: 理 隆 | C135: ▲ | D135: 0.19 | E135: 8.98 | F135: 8.39 | G135: 8.98 | H135: 8.39 | I135: 7 | J135: 1469理 隆 | K135: -1.14 | L135: 8.01 | M135: 0.6 | N135: 0.52 | O135: 19.93 | P135: 0.05 | Q135: 103.81 | R135: 31.41 | S135: 45.79 | T135: 110.7
A136: 1470 | B136: 大統染 | C136: ▲ | D136: 0.23 | E136: 6.24 | F136: 6.02 | G136: 6.24 | H136: 6 | I136: 14 | J136: 1470大統染 | K136: 5.98 | L136: 5.32 | M136: 0.92 | N136: 0.83 | O136: -17.09 | P136: 0.19 | Q136: 530.79 | R136: 10.22 | S136: 11.38 | T136: 211.01
A137: 1471 | B137: 首 利 | C137: ▲ | D137: 0.4 | E137: 15.5 | F137: 15.45 | G137: 16 | H137: 15.15 | I137: 1788 | J137: 1471首 利 | K137: -0.23 | L137: 1.89 | M137: 1.3 | N137: 0.91 | O137: -21.7 | P137: 0.5 | Q137: 160.95 | R137: 36.16 | S137: 56.65 | T137: 550.29
A138: 1472 | B138: 三洋纖 | D138: 0 | E138: 2.83 | F138: 2.87 | G138: 2.87 | H138: 2.78 | I138: 148 | J138: 1472三洋纖 | K138: -20.88 | L138: -55.74 | M138: -8.49 | N138: -6.58 | O138: -43.35 | P138: 0.12 | Q138: 170.16 | R138: 25 | S138: 33.33 | T138: 133.76
A139: 1473 | B139: 台 南 | C139: ▲ | D139: 0.15 | E139: 23.05 | F139: 22.6 | G139: 23.2 | H139: 22.6 | I139: 210 | J139: 1473台 南 | K139: 1.9 | L139: 4.31 | M139: 1.78 | N139: 1.36 | O139: -23.5 | P139: 0.34 | Q139: 219.76 | R139: 25.47 | S139: 34.18 | T139: 685.47
A140: 1474 | B140: 弘 裕 | C140: ▲ | D140: 0.07 | E140: 5.05 | F140: 4.96 | G140: 5.05 | H140: 4.93 | I140: 136 | J140: 1474弘 裕 | K140: 2.33 | L140: 2.47 | M140: 0.56 | N140: 0.45 | O140: -29.68 | P140: 0.2 | Q140: 200.58 | R140: 40.47 | S140: 67.98 | T140: 354.71
A141: 1475 | B141: 本 盟 | C141: ▲ | D141: 0.22 | E141: 6 | F141: 5.7 | G141: 6 | H141: 5.68 | I141: 64 | J141: 1475本 盟 | K141: -12.41 | L141: -48.37 | M141: -7.05 | N141: -3.03 | O141: -45.17 | P141: 0.07 | Q141: 45.36 | R141: 50.67 | S141: 102.72 | T141: 126.95
A142: 1476 | B142: 儒 鴻 | C142: ▲ | D142: 0.15 | E142: 14.9 | F142: 14.6 | G142: 15.1 | H142: 14.6 | I142: 276 | J142: 1476儒 鴻 | K142: 11.93 | L142: 10.8 | M142: 3.75 | N142: 2.62 | O142: 5.88 | P142: 0.35 | Q142: 194.27 | R142: 27.98 | S142: 38.85 | T142: 365.23
A143: 1477 | B143: 聚 陽 | D143: 0 | E143: 51.2 | F143: 51 | G143: 51.7 | H143: 50.9 | I143: 368 | J143: 1477聚 陽 | K143: 5.58 | L143: 8.5 | M143: 6.35 | N143: 4.1 | O143: -10.88 | P143: 0.57 | Q143: 152.77 | R143: 37.76 | S143: 60.66 | T143: 3113.48
A144: 1503 | B144: 士 電 | C144: ▲ | D144: 1.15 | E144: 37.9 | F144: 37 | G144: 37.9 | H144: 36.9 | I144: 3003 | J144: 1503士 電 | K144: 5.6 | L144: 8.04 | M144: 1.59 | N144: 0.84 | O144: -22.53 | P144: 0.11 | Q144: 108.81 | R144: 48.39 | S144: 93.77 | T144: 166.95
A145: 1504 | B145: 東 元 | C145: ▲ | D145: 0.3 | E145: 13.4 | F145: 13.25 | G145: 13.45 | H145: 13.1 | I145: 4851 | J145: 1504東 元 | K145: 3.64 | L145: 4.68 | M145: 0.61 | N145: 0.44 | O145: -24.56 | P145: 0.09 | Q145: 154.76 | R145: 39.46 | S145: 65.18 | T145: 1103.2
A146: 1506 | B146: 正 道 | D146: 0 | E146: 14.5 | F146: 14.4 | G146: 14.5 | H146: 14.4 | I146: 51 | J146: 1506正 道 | K146: -45.4 | L146: -19.11 | M146: -3.12 | N146: -0.94 | O146: -33.62 | P146: 0.06 | Q146: 53.1 | R146: 63.25 | S146: 172.1 | T146: 208.85
A147: 1507 | B147: 永 大 | C147: ▲ | D147: 0.05 | E147: 18.35 | F147: 18.3 | G147: 18.5 | H147: 18.2 | I147: 3299 | J147: 1507永 大 | K147: 17.55 | L147: 26.73 | M147: 2.18 | N147: 1.71 | O147: -9.1 | P147: 0.07 | Q147: 175.65 | R147: 21.24 | S147: 26.97 | T147: 673.11
A148: 1512 | B148: 瑞 利 | C148: ▼ | D148: -0.01 | E148: 8.4 | F148: 8.35 | G148: 8.49 | H148: 8.17 | I148: 91 | J148: 1512瑞 利 | K148: -8.29 | L148: -7.89 | M148: -1.87 | N148: -0.72 | O148: -8.09 | P148: 0.14 | Q148: 65.06 | R148: 53.62 | S148: 115.63 | T148: 103.9
A149: 1513 | B149: 中興電 | C149: ▲ | D149: 0.05 | E149: 16.8 | F149: 16.75 | G149: 16.85 | H149: 16.4 | I149: 2869 | J149: 1513中興電 | K149: 7.54 | L149: 9.98 | M149: 1.89 | N149: 1 | O149: -27.66 | P149: 0.12 | Q149: 119.85 | R149: 48.65 | S149: 94.73 | T149: 254.59
A150: 1514 | B150: 亞 力 | C150: ▲ | D150: 0.09 | E150: 6.54 | F150: 6.44 | G150: 6.54 | H150: 6.37 | I150: 287 | J150: 1514亞 力 | K150: 4.05 | L150: 6.2 | M150: 1.09 | N150: 0.65 | O150: -1.79 | P150: 0.17 | Q150: 158.36 | R150: 42.2 | S150: 73 | T150: 216.64
A151: 1515 | B151: 力 山 | C151: ▼ | D151: -0.01 | E151: 6.09 | F151: 6.1 | G151: 6.21 | H151: 6.05 | I151: 323 | J151: 1515力 山 | K151: 6.57 | L151: 8.58 | M151: 0.81 | N151: 0.45 | O151: -29.23 | P151: 0.12 | Q151: 70.12 | R151: 61.97 | S151: 162.94 | T151: 128.2
A152: 1516 | B152: 川 飛 | D152: 0 | E152: 13.65 | F152: 13.55 | G152: 13.65 | H152: 13.2 | I152: 2448 | J152: 1516川 飛 | K152: -83.19 | L152: -76.68 | M152: -1.45 | N152: -1.18 | O152: -67.09 | P152: 0.02 | Q152: 128.85 | R152: 16.83 | S152: 20.24 | T152: 113.99
A153: 1517 | B153: 利 奇 | D153: 0 | E153: 10.1 | F153: 10.1 | G153: 10.25 | H153: 10 | I153: 894 | J153: 1517利 奇 | K153: 2.85 | L153: 14.16 | M153: 1.57 | N153: 1.27 | O153: -24 | P153: 0.13 | Q153: 429 | R153: 17.04 | S153: 20.54 | T153: 729.83
A154: 1519 | B154: 華 城 | C154: ▼ | D154: -0.15 | E154: 32.3 | F154: 32.45 | G154: 32.45 | H154: 31.85 | I154: 698 | J154: 1519華 城 | K154: 9.42 | L154: 9.76 | M154: 4.49 | N154: 2.29 | O154: 13.96 | P154: 0.28 | Q154: 176.98 | R154: 47.28 | S154: 89.69 | T154: 239.98
A155: 1521 | B155: 大 億 | D155: 0 | E155: 19.9 | F155: 19.9 | G155: 20 | H155: 19.55 | I155: 115 | J155: 1521大 億 | K155: 5.22 | L155: 6.49 | M155: 3.01 | N155: 1.66 | O155: -19.16 | P155: 0.27 | Q155: 137.54 | R155: 44.47 | S155: 80.09 | T155: 152.54
A156: 1522 | B156: 堤維西 | C156: ▲ | D156: 0.05 | E156: 18.85 | F156: 18.8 | G156: 18.95 | H156: 18.6 | I156: 1001 | J156: 1522堤維西 | K156: 8.94 | L156: 10.47 | M156: 3.76 | N156: 1.72 | O156: -13.48 | P156: 0.17 | Q156: 137.26 | R156: 55.9 | S156: 126.74 | T156: 151.14
A157: 1523 | B157: 開 億 | C157: ▲ | D157: 0.8 | E157: 17.3 | F157: 16.5 | G157: 17.4 | H157: 16.5 | I157: 736 | J157: 1523開 億 | K157: 5.24 | L157: 7.29 | M157: 2.65 | N157: 1.48 | O157: -5.31 | P157: 0.24 | Q157: 102.73 | R157: 46.17 | S157: 85.78 | T157: 132.44
A158: 1524 | B158: 耿 鼎 | C158: ▲ | D158: 0.05 | E158: 8.2 | F158: 8.12 | G158: 8.23 | H158: 8.09 | I158: 277 | J158: 1524耿 鼎 | K158: -0.72 | L158: 0.41 | M158: 0.24 | N158: 0.25 | O158: -3.53 | P158: 0.15 | Q158: 67.27 | R158: 60.61 | S158: 153.85 | T158: 84.82
A159: 1525 | B159: 江 申 | C159: ▲ | D159: 0.1 | E159: 18.4 | F159: 18.2 | G159: 18.5 | H159: 18.2 | I159: 15 | J159: 1525江 申 | K159: -19.77 | L159: 11.1 | M159: 0.79 | N159: 0.65 | O159: -39.23 | P159: 0.06 | Q159: 289.32 | R159: 16.01 | S159: 19.06 | T159: 349.15
A160: 1526 | B160: 日 馳 | C160: ▼ | D160: -0.02 | E160: 5.69 | F160: 5.71 | G160: 5.76 | H160: 5.68 | I160: 50 | J160: 1526日 馳 | K160: -4.4 | L160: -8.04 | M160: -2.12 | N160: -0.74 | O160: -13.42 | P160: 0.14 | Q160: 158.46 | R160: 53.6 | S160: 115.5 | T160: 145.18
A161: 1527 | B161: 鑽 全 | C161: ▲ | D161: 0.3 | E161: 25.3 | F161: 25 | G161: 25.3 | H161: 24.75 | I161: 222 | J161: 1527鑽 全 | K161: 10.74 | L161: 49.5 | M161: 6.5 | N161: 2.2 | O161: -44.63 | P161: 0.05 | Q161: 98.16 | R161: 67.22 | S161: 205.05 | T161: 165.61
A162: 1528 | B162: 恩 德 | C162: ▲ | D162: 0.01 | E162: 8.56 | F162: 8.51 | G162: 8.58 | H162: 8.51 | I162: 103 | J162: 1528恩 德 | K162: -4.77 | L162: 1.06 | M162: 0.23 | N162: 0.31 | O162: -57.03 | P162: 0.09 | Q162: 207.69 | R162: 47.06 | S162: 88.9 | T162: 373.79
A163: 1529 | B163: 樂 士 | C163: ▲ | D163: 0.03 | E163: 3.69 | F163: 3.63 | G163: 3.73 | H163: 3.62 | I163: 629 | J163: 1529樂 士 | K163: -43.17 | L163: -36.13 | M163: -2.55 | N163: -1.63 | O163: -34.14 | P163: 0.05 | Q163: 276.59 | R163: 30.17 | S163: 43.2 | T163: 467.48
A164: 1530 | B164: 亞 崴 | C164: ▲ | D164: 0.1 | E164: 26.1 | F164: 26 | G164: 26.5 | H164: 25.85 | I164: 285 | J164: 1530亞 崴 | K164: 1.49 | L164: 3.33 | M164: 0.5 | N164: 0.4 | O164: -77.38 | P164: 0.06 | Q164: 242.43 | R164: 38.01 | S164: 61.32 | T164: 269.82
A165: 1531 | B165: 高林股 | C165: ▲ | D165: 0.15 | E165: 13.25 | F165: 13.1 | G165: 13.5 | H165: 13.1 | I165: 462 | J165: 1531高林股 | K165: 1.19 | L165: 21.92 | M165: 2.07 | N165: 1.74 | O165: -45.27 | P165: 0.1 | Q165: 517.42 | R165: 15.11 | S165: 17.8 | T165: 1758.56
A166: 1532 | B166: 勤 美 | C166: ▲ | D166: 1.75 | E166: 26.75 | F166: 25.2 | G166: 26.75 | H166: 25 | I166: 5233 | J166: 1532勤 美 | K166: -16.53 | L166: 7.62 | M166: 2.26 | N166: 1.26 | O166: -62.68 | P166: 0.06 | Q166: 22.81 | R166: 51.79 | S166: 107.43 | T166: 178.18
A167: 1533 | B167: 車王電 | C167: ▲ | D167: 0.2 | E167: 14.3 | F167: 14.1 | G167: 14.4 | H167: 14 | I167: 73 | J167: 1533車王電 | K167: -6.54 | L167: 4.12 | M167: 0.54 | N167: 0.39 | O167: -46.14 | P167: 0.08 | Q167: 250.53 | R167: 43.99 | S167: 78.55 | T167: 347.82
A168: 1535 | B168: 中 宇 | C168: ▲ | D168: 0.25 | E168: 40.5 | F168: 40.25 | G168: 40.65 | H168: 39.7 | I168: 617 | J168: 1535中 宇 | K168: 5.48 | L168: 7.21 | M168: 5.09 | N168: 2.81 | O168: 14.69 | P168: 0.47 | Q168: 192.22 | R168: 42.74 | S168: 74.63 | T168: 1479.07
A169: 1536 | B169: 和 大 | C169: ▲ | D169: 0.02 | E169: 8.04 | F169: 8.02 | G169: 8.12 | H169: 7.93 | I169: 2188 | J169: 1536和 大 | K169: -19.89 | L169: -22.71 | M169: -4.9 | N169: -0.8 | O169: -54.38 | P169: 0.05 | Q169: 101.98 | R169: 76.54 | S169: 326.34 | T169: 108.59
A170: 1537 | B170: 廣 隆 | C170: ▲ | D170: 0.1 | E170: 20.1 | F170: 19.8 | G170: 20.15 | H170: 19.8 | I170: 71 | J170: 1537廣 隆 | K170: -8.46 | L170: -2.16 | M170: -0.66 | N170: -0.19 | O170: -31.03 | P170: 0.25 | Q170: 104.13 | R170: 38.05 | S170: 61.42 | T170: 589.34
A171: 1538 | B171: 正峰工 | C171: ▲ | D171: 0.15 | E171: 18.8 | F171: 18.7 | G171: 19 | H171: 18.7 | I171: 558 | J171: 1538正峰工 | K171: -2.89 | L171: 8.19 | M171: 0.85 | N171: 0.58 | O171: -71.73 | P171: 0.1 | Q171: 160.42 | R171: 40.58 | S171: 68.3 | T171: 219.97
A172: 1539 | B172: 巨 庭 | C172: ▲ | D172: 0.09 | E172: 5.55 | F172: 5.46 | G172: 5.55 | H172: 5.45 | I172: 19 | J172: 1539巨 庭 | K172: 3.29 | L172: 5.06 | M172: 0.69 | N172: 0.47 | O172: -64.8 | P172: 0.09 | Q172: 160.35 | R172: 45.31 | S172: 82.85 | T172: 253.76
A173: 1540 | B173: 喬 福 | C173: ▲ | D173: 0.3 | E173: 30.4 | F173: 30.35 | G173: 30.4 | H173: 30.1 | I173: 110 | J173: 1540喬 福 | K173: 25.53 | L173: 28.05 | M173: 7.27 | N173: 4.64 | O173: -18.09 | P173: 0.21 | Q173: 235.28 | R173: 32.44 | S173: 48.01 | T173: 293.98
A174: 1541 | B174: 錩 泰 | C174: ▼ | D174: -0.05 | E174: 11.1 | F174: 11.35 | G174: 11.35 | H174: 11.1 | I174: 5 | J174: 1541錩 泰 | K174: 1 | L174: 12.55 | M174: 2.42 | N174: 1.98 | O174: -36.6 | P174: 0.18 | Q174: 242.59 | R174: 18.19 | S174: 22.23 | T174: 163.15
A175: 1558 | B175: 伸 興 | D175: 0 | E175: 34.6 | F175: 34 | G175: 34.75 | H175: 34 | I175: 27 | J175: =A175&B175 -> 1558伸 興 | K175: 6.14 | L175: 16.19 | M175: 5.25 | N175: 3.62 | O175: -10.63 | P175: 0.29 | Q175: 189.52 | R175: 26.26 | S175: 35.62 | T175: 883.27
A176: 1560 | B176: 中 砂 | C176: ▲ | D176: 0.4 | E176: 28.3 | F176: 28.1 | G176: 28.3 | H176: 27.8 | I176: 259 | J176: 1560中 砂 | K176: -34.45 | L176: -33.89 | M176: -3.07 | N176: -1.98 | O176: -51.89 | P176: 0.08 | Q176: 110.38 | R176: 33.9 | S176: 51.28 | T176: 104.86
A177: 1565 | B177: 精 華 | D177: 0 | E177: 125.5 | F177: 125.5 | G177: 125.5 | H177: 123.5 | I177: 118 | J177: 1565精 華 | K177: 34.25 | L177: 37.02 | M177: 7.06 | N177: 5.01 | O177: 0.97 | P177: 0.19 | Q177: 328.14 | R177: 28.91 | S177: 40.67 | T177: 254.05
A178: 1569 | B178: 濱 川 | C178: ▲ | D178: 0.1 | E178: 16.6 | F178: 16.5 | G178: 16.6 | H178: 16.5 | I178: 18 | J178: 1569濱 川 | K178: -2.74 | L178: -0.32 | M178: -0.26 | N178: 0.02 | O178: -41.1 | P178: 0.04 | Q178: 85.3 | R178: 40.68 | S178: 68.57 | T178: 3368.74
A179: 1570 | B179: 力 肯 | C179: ▼ | D179: -0.29 | E179: 6.71 | F179: 6.9 | G179: 6.9 | H179: 6.52 | I179: 132 | J179: 1570力 肯 | K179: -14.05 | L179: -6.37 | M179: -0.54 | N179: -0.41 | O179: -38.3 | P179: 0.11 | Q179: 251.39 | R179: 20.75 | S179: 26.18 | T179: 252.44
A180: 1580 | B180: 新 麥 | D180: 0 | E180: 33.7 | F180: 33.7 | G180: 33.7 | H180: 33.65 | I180: 11 | J180: 1580新 麥 | K180: 4.13 | L180: 23.38 | M180: 4.41 | N180: 2.98 | O180: 1.49 | P180: 0.19 | Q180: 143.38 | R180: 33.08 | S180: 49.43 | T180: 712.49
A181: 1582 | B181: 信 錦 | C181: ▲ | D181: 0.8 | E181: 48.8 | F181: 48.05 | G181: 48.9 | H181: 48.05 | I181: 265 | J181: 1582信 錦 | K181: -14.45 | L181: 151.74 | M181: 4.45 | N181: 3.73 | O181: -45.96 | P181: 0.03 | Q181: 122.86 | R181: 15.37 | S181: 18.16 | T181: 2914.03
A182: 1583 | B182: 程 泰 | C182: ▲ | D182: 0.7 | E182: 24.1 | F182: 23.4 | G182: 24.1 | H182: 23.4 | I182: 56 | J182: 1583程 泰 | K182: -7.35 | L182: -3.25 | M182: -0.28 | N182: -0.07 | O182: -70.68 | P182: 0.05 | Q182: 148.02 | R182: 41.11 | S182: 69.82 | T182: 290.12
A183: 1584 | B183: 精 剛 | C183: ▼ | D183: -0.3 | E183: 13.8 | F183: 13.7 | G183: 14.1 | H183: 13.5 | I183: 30 | J183: 1584精 剛 | K183: -0.48 | L183: 0.67 | M183: 0.07 | N183: 0.1 | O183: 7.48 | P183: 0.1 | Q183: 149.28 | R183: 57.82 | S183: 137.08 | T183: 116.91
A184: 1603 | B184: 華 電 | C184: ▲ | D184: 0.15 | E184: 6.74 | F184: 6.59 | G184: 6.75 | H184: 6.59 | I184: 1012 | J184: 1603華 電 | K184: 10.45 | L184: 9.06 | M184: 1.16 | N184: 0.71 | O184: -35.93 | P184: 0.08 | Q184: 67.82 | R184: 50.56 | S184: 102.25 | T184: 115.24
A185: 1604 | B185: 聲 寶 | C185: ▲ | D185: 0.06 | E185: 5.2 | F185: 5.2 | G185: 5.24 | H185: 5.15 | I185: 2549 | J185: 1604聲 寶 | K185: 2.37 | L185: 2.23 | M185: 0.61 | N185: 0.5 | O185: -13.99 | P185: 0.16 | Q185: 99.2 | R185: 40.89 | S185: 69.18 | T185: 235.4
A186: 1605 | B186: 華 新 | C186: ▲ | D186: 0.2 | E186: 10.7 | F186: 10.55 | G186: 10.75 | H186: 10.55 | I186: 21738 | J186: 1605華 新 | K186: 4.9 | L186: 1.27 | M186: 0.09 | N186: 0.17 | O186: -41.01 | P186: 0.16 | Q186: 69.04 | R186: 29.55 | S186: 41.94 | T186: 308.4
A187: 1606 | B187: 歌 林 | D187: 0 | E187: 0 | F187: 0 | G187: 0 | H187: 0 | I187: 0 | J187: 1606歌 林 | K187: 0 | L187: 0 | M187: 0 | N187: 0 | O187: 0 | P187: 0 | Q187: 0 | R187: 0 | S187: 0 | T187: 0
A188: 1608 | B188: 華 榮 | C188: ▲ | D188: 0.1 | E188: 7.33 | F188: 7.23 | G188: 7.43 | H188: 7.2 | I188: 1500 | J188: 1608華 榮 | K188: 0.1 | L188: 6.22 | M188: 1.02 | N188: 0.86 | O188: -67.98 | P188: 0.16 | Q188: 1009.24 | R188: 15.76 | S188: 18.7 | T188: 272.5
A189: 1609 | B189: 大 亞 | C189: ▲ | D189: 0.07 | E189: 6.01 | F189: 5.9 | G189: 6.05 | H189: 5.9 | I189: 652 | J189: 1609大 亞 | K189: -9.6 | L189: -12.88 | M189: -2.15 | N189: -1.2 | O189: -50.01 | P189: 0.13 | Q189: 250.5 | R189: 38.78 | S189: 63.35 | T189: 317.22
A190: 1611 | B190: 中 電 | C190: ▲ | D190: 0.1 | E190: 13.95 | F190: 14 | G190: 14 | H190: 13.7 | I190: 419 | J190: 1611中 電 | K190: 9.99 | L190: 10.71 | M190: 1.48 | N190: 1.23 | O190: -2.65 | P190: 0.15 | Q190: 292.89 | R190: 17.34 | S190: 20.98 | T190: 350.43
A191: 1612 | B191: 宏 泰 | C191: ▲ | D191: 0.05 | E191: 10.7 | F191: 10.7 | G191: 10.85 | H191: 10.6 | I191: 505 | J191: 1612宏 泰 | K191: 2.81 | L191: 5.86 | M191: 1.26 | N191: 1.15 | O191: -42.65 | P191: 0.23 | Q191: 638 | R191: 8.77 | S191: 9.61 | T191: 353.07
A192: 1613 | B192: 台 一 | C192: ▲ | D192: 0.01 | E192: 3.51 | F192: 3.5 | G192: 3.55 | H192: 3.46 | I192: 132 | J192: 1613台 一 | K192: -7.49 | L192: -16.37 | M192: -11.28 | N192: -1.85 | O192: -46.71 | P192: 0.13 | Q192: 226.34 | R192: 81.15 | S192: 430.54 | T192: 190.81
A193: 1614 | B193: 三洋電 | D193: 0 | E193: 29.2 | F193: 29.4 | G193: 29.5 | H193: 28.7 | I193: 235 | J193: 1614三洋電 | K193: 3.12 | L193: 4.14 | M193: 1.09 | N193: 0.88 | O193: 8.04 | P193: 0.26 | Q193: 529.65 | R193: 21.36 | S193: 27.16 | T193: 270.73
A194: 1615 | B194: 大 山 | C194: ▲ | D194: 0.07 | E194: 7.93 | F194: 7.95 | G194: 7.95 | H194: 7.9 | I194: 12 | J194: 1615大 山 | K194: -1.98 | L194: -2.08 | M194: -1.32 | N194: -0.73 | O194: -47.28 | P194: 0.35 | Q194: 185.47 | R194: 34.62 | S194: 52.94 | T194: 138.53
A195: 1616 | B195: 億 泰 | C195: ▲ | D195: 0.27 | E195: 5.45 | F195: 5.1 | G195: 5.54 | H195: 5.1 | I195: 2451 | J195: 1616億 泰 | K195: -0.98 | L195: 2.38 | M195: 0.62 | N195: 0.51 | O195: -52.56 | P195: 0.2 | Q195: 165.41 | R195: 34.05 | S195: 51.63 | T195: 381.85
A196: 1617 | B196: 榮 星 | C196: ▲ | D196: 0.11 | E196: 6.11 | F196: 6.14 | G196: 6.19 | H196: 5.9 | I196: 98 | J196: 1617榮 星 | K196: -16.96 | L196: -20.02 | M196: -5.44 | N196: -2.36 | O196: -69.68 | P196: 0.16 | Q196: 118.64 | R196: 53.89 | S196: 116.88 | T196: 337.02
A197: 1618 | B197: 合 機 | C197: ▲ | D197: 1.25 | E197: 19.65 | F197: 18.4 | G197: 19.65 | H197: 18.2 | I197: 14096 | J197: 1618合 機 | K197: -4.6 | L197: 0.39 | M197: -0.2 | N197: -0.09 | O197: -24.3 | P197: 0.1 | Q197: 131.96 | R197: 17.8 | S197: 21.65 | T197: 260.9
A198: 1701 | B198: 中 化 | C198: ▲ | D198: 0.35 | E198: 20.45 | F198: 20.1 | G198: 20.55 | H198: 20.05 | I198: 4498 | J198: 1701中 化 | K198: 8.65 | L198: 7.56 | M198: 1.06 | N198: 0.8 | O198: 14.04 | P198: 0.12 | Q198: 120.93 | R198: 29.11 | S198: 41.06 | T198: 161.26
A199: 1702 | B199: 南 僑 | C199: ▲ | D199: 0.11 | E199: 8 | F199: 7.89 | G199: 8.1 | H199: 7.89 | I199: 1051 | J199: 1702南 僑 | K199: -8.11 | L199: 0.9 | M199: 0.14 | N199: 0.24 | O199: -12.12 | P199: 0.08 | Q199: 122.38 | R199: 47.17 | S199: 89.27 | T199: 220.48
A200: 1704 | B200: 榮 化 | C200: ▲ | D200: 0.25 | E200: 28.6 | F200: 28.4 | G200: 28.7 | H200: 28.35 | I200: 742 | J200: 1704榮 化 | K200: 6.75 | L200: 13.46 | M200: 3.4 | N200: 2 | O200: 40.64 | P200: 0.2 | Q200: 124.54 | R200: 42.35 | S200: 73.46 | T200: 279.56
A201: 1707 | B201: 葡萄王 | C201: ▲ | D201: 0.4 | E201: 21.4 | F201: 21 | G201: 21.45 | H201: 21 | I201: 144 | J201: 1707葡萄王 | K201: 8.97 | L201: 16.98 | M201: 2.19 | N201: 1.61 | O201: 12.55 | P201: 0.14 | Q201: 470.49 | R201: 27.24 | S201: 37.43 | T201: 237.87
... 1172 more rows

Sheet 財務比率
B2: 台積電(2330)
B3: 單位:％ | N3: =INDEX(收盤行情!A46:A1500,O3) -> 2330 | O3: 273
B4: 獲利能力 | N4: =B2 -> 台積電(2330)
B5: 期別 | C5: 98.1Q | D5: 97.4Q | E5: 97.3Q | F5: 97.2Q | G5: 97.1Q | H5: 96.4Q | I5: 96.3Q | J5: 96.2Q | N5: 年度季別 | O5: 財務比率 | P5: =C5 -> 98.1Q | Q5: =D5 -> 97.4Q | R5: =G5 -> 97.1Q | S5: =C5 -> 98.1Q | T5: =D5 -> 97.4Q | U5: =G5 -> 97.1Q
B6: 營業毛利率 | C6: 20.88 | D6: 32.38 | E6: 46.35 | F6: 45.97 | G6: 43.84 | H6: 47.39 | I6: 45.62 | J6: 42.4 | N6: 獲利能力 | O6: 營業利益率 | P6: =INDEX($A$1:$G$45,7,3) -> 8.24 | Q6: =INDEX($A$1:$G$45,7,4) -> 21.38 | R6: =INDEX($A$1:$G$45,7,7) -> 34.51 | S6: =LOOKUP(P6,$N$19:$N$28,$O$19:$O$28) -> 8 | T6: =LOOKUP(Q6,$N$19:$N$28,$O$19:$O$28) -> 10 | U6: =LOOKUP(R6,$N$19:$N$28,$O$19:$O$28) -> 10
B7: 營業利益率 | C7: 8.24 | D7: 21.38 | E7: 36.63 | F7: 36.06 | G7: 34.51 | H7: 40.17 | I7: 37.52 | J7: 34.17 | O7: 稅前淨利率 | P7: =INDEX($A$1:$G$45,8,3) -> 2 | Q7: =INDEX($A$1:$G$45,8,4) -> 21.17 | R7: =INDEX($A$1:$G$45,8,7) -> 36.85 | S7: =LOOKUP(P7,$N$19:$N$28,$O$19:$O$28) -> 6 | T7: =LOOKUP(Q7,$N$19:$N$28,$O$19:$O$28) -> 10 | U7: =LOOKUP(R7,$N$19:$N$28,$O$19:$O$28) -> 10
B8: 稅前淨利率 | C8: 2 | D8: 21.17 | E8: 38.03 | F8: 37.62 | G8: 36.85 | H8: 42.93 | I8: 39.31 | J8: 38.17 | O8: 股東權益報酬率 | P8: =INDEX($A$1:$G$45,14,3) -> 0.33 | Q8: =INDEX($A$1:$G$45,14,4) -> 2.65 | R8: =INDEX($A$1:$G$45,14,7) -> 5.65 | S8: 5 | T8: 7 | U8: 8
B9: 稅後淨利率 | C9: 4.15 | D9: 20.46 | E9: 33.93 | F9: 33.61 | G9: 33.02 | H9: 37.9 | I9: 35.13 | J9: 34.98 | O9: 資產報酬率 | P9: =INDEX($A$1:$G$45,15,3) -> 0.3 | Q9: =INDEX($A$1:$G$45,15,4) -> 2.33 | R9: =INDEX($A$1:$G$45,15,7) -> 4.99 | S9: 5 | T9: 6 | U9: 8
B10: 每股淨值(元) | C10: 18.79 | D10: 18.59 | E10: 18.03 | F10: 17.11 | G10: 19.9 | H10: 19.03 | I10: 18.99 | J10: 17.84 | N10: 經營績效 | O10: 營收成長率 | P10: =INDEX($A$1:$G$45,19,3) -> -55.93 | Q10: =INDEX($A$1:$G$45,19,4) -> -33.15 | R10: =INDEX($A$1:$G$45,19,7) -> 34.55 | S10: 2 | T10: 2 | U10: 10
B11: 每股營業額(元) | C11: 1.47 | D11: 2.37 | E11: 3.52 | F11: 3.34 | G11: 3.33 | H11: 3.56 | I11: 3.38 | J11: 2.85 | N11: 償債能力 | O11: 流動比率 | P11: =INDEX($A$1:$G$45,28,3) -> 462.24 | Q11: =INDEX($A$1:$G$45,28,4) -> 338.7 | R11: =INDEX($A$1:$G$45,28,7) -> 369.92 | S11: 10 | T11: 10 | U11: 10
B12: 每股營業利益(元) | C12: 0.12 | D12: 0.51 | E12: 1.29 | F12: 1.2 | G12: 1.15 | H12: 1.43 | I12: 1.27 | J12: 0.97 | O12: 負債比率 | P12: =INDEX($A$1:$G$45,30,3) -> 9.76 | Q12: =INDEX($A$1:$G$45,30,4) -> 11.87 | R12: =INDEX($A$1:$G$45,30,7) -> 11.99 | S12: =IF(P12<0,1,LOOKUP(P12,$P$30:$P$39,$Q$30:$Q$39)) -> 10 | T12: =IF(Q12<0,1,LOOKUP(Q12,$P$30:$P$39,$Q$30:$Q$39)) -> 10 | U12: 10
B13: 每股稅前淨利(元) | C13: 0.03 | D13: 0.5 | E13: 1.32 | F13: 1.26 | G13: 1.23 | H13: 1.48 | I13: 1.29 | J13: 1.05 | N13: 經營能力 | O13: 總資產週轉率(次) | P13: =INDEX($A$1:$G$45,37,3) -> 0.07 | Q13: =INDEX($A$1:$G$45,37,4) -> 0.11 | R13: =INDEX($A$1:$G$45,37,7) -> 0.15 | S13: =LOOKUP(P13,$P41:$P50,$Q41:$Q50) -> 2 | T13: =LOOKUP(Q13,$P41:$P50,$Q41:$Q50) -> 2 | U13: =LOOKUP(R13,$P41:$P50,$Q41:$Q50) -> 2
B14: 股東權益報酬率 | C14: 0.33 | D14: 2.65 | E14: 6.75 | F14: 6.04 | G14: 5.65 | H14: 6.98 | I14: 6.25 | J14: 5.1 | O14: 員工平均營業額(千元) | P14: =INDEX($A$1:$G$45,38,3) -> 19 | Q14: =INDEX($A$1:$G$45,38,4) -> 30 | R14: =INDEX($A$1:$G$45,38,7) -> 42 | S14: =LOOKUP(P14,$P$52:$P$61,$Q$52:$Q$61) -> 3 | T14: =LOOKUP(Q14,$P$52:$P$61,$Q$52:$Q$61) -> 4 | U14: 5
B15: 資產報酬率 | C15: 0.3 | D15: 2.33 | E15: 5.43 | F15: 4.9 | G15: 4.99 | H15: 6.18 | I15: 5.13 | J15: 4.22 | N15: 資本結構 | O15: 負債對淨值比率 | P15: =INDEX($A$1:$G$45,43,3) -> 10.82 | Q15: =INDEX($A$1:$G$45,43,4) -> 13.47 | R15: =INDEX($A$1:$G$45,43,7) -> 13.62 | S15: =IF(P15<0,1,LOOKUP(P15,$P$63:$P$72,$Q$63:$Q$72)) -> 10 | T15: =IF(Q15<0,1,LOOKUP(Q15,$P$63:$P$72,$Q$63:$Q$72)) -> 10 | U15: 10
B16: 每股稅後淨利(元) | C16: 0.06 | D16: 0.48 | E16: 1.18 | F16: 1.12 | G16: 1.1 | H16: 1.31 | I16: 1.15 | J16: 0.97 | O16: 總分/等級 | P16: =LOOKUP(S16,R19:R23,S19:S23) -> ☆☆☆ | Q16: =LOOKUP(T16,R19:R23,S19:S23) -> ☆☆☆☆ | R16: =LOOKUP(U16,R19:R23,S19:S23) -> ☆☆☆☆☆ | S16: =SUM(S6:S15) -> 61 | T16: =SUM(T6:T15) -> 71 | U16: =SUM(U6:U15) -> 83
B17: 經營績效
B18: 期別 | C18: 98.1Q | D18: 97.4Q | E18: 97.3Q | F18: 97.2Q | G18: 97.1Q | H18: 96.4Q | I18: 96.3Q | J18: 96.2Q | N18: 營業利益率 | O18: 分數 | P18: 流動比率 | Q18: 分數 | R18: 總分 | S18: 等級
B19: 營收成長率 | C19: -55.93 | D19: -33.15 | E19: 4.23 | F19: 17.49 | G19: 34.55 | H19: 23.06 | I19: 6.18 | J19: -10.31 | N19: -999999 | O19: 1 | P19: -999999 | Q19: 1 | R19: 10 | S19: ☆
B20: 營業利益成長率 | C20: -89.48 | D20: -64.42 | E20: 1.74 | F20: 23.97 | G20: 60.19 | H20: 33.28 | I20: -1.79 | J20: -28.82 | N20: =收盤行情!K35 -> -118.87 | O20: 2 | P20: =收盤行情!P35 -> 0.01 | Q20: 2 | R20: 28 | S20: ☆☆
B21: 稅前淨利成長率 | C21: -97.61 | D21: -67.04 | E21: 0.85 | F21: 15.8 | G21: 57.87 | H21: 33.27 | I21: -1.75 | J21: -23.29 | N21: =收盤行情!K36 -> -17.43 | O21: 3 | P21: =收盤行情!P36 -> 0.05 | Q21: 3 | R21: 46 | S21: ☆☆☆
B22: 稅後淨利成長率 | C22: -94.46 | D22: -63.91 | E22: 0.67 | F22: 12.9 | G22: 49.39 | H22: 23.55 | I22: -6.52 | J22: -25.05 | N22: =收盤行情!K37 -> -7.49 | O22: 4 | P22: =收盤行情!P37 -> 0.07 | Q22: 4 | R22: 64 | S22: ☆☆☆☆
B23: 總資產成長率 | C23: -7.78 | D23: -2.03 | E23: -6.28 | F23: -3.7 | G23: -2.19 | H23: -3.8 | I23: 3.05 | J23: 6.64 | N23: =收盤行情!K38 -> -1.98 | O23: 5 | P23: =收盤行情!P38 -> 0.09 | Q23: 5 | R23: 82 | S23: ☆☆☆☆☆
B24: 淨值成長率 | C24: -5.45 | D24: -2.2 | E24: -7.82 | F24: -5.87 | G24: -3.66 | H24: -4.11 | I24: 4.19 | J24: 5.38 | N24: =收盤行情!K39 -> 0.97 | O24: 6 | P24: =收盤行情!P39 -> 0.12 | Q24: 6
B25: 固定資產成長率 | C25: -13.84 | D25: -6.52 | E25: -5.02 | F25: -0.49 | G25: 5.91 | H25: 2.77 | I25: 2.59 | J25: 6.64 | N25: =收盤行情!K40 -> 2.47 | O25: 7 | P25: =收盤行情!P40 -> 0.15 | Q25: 7
B26: 償債能力 | N26: =收盤行情!K41 -> 4.9 | O26: 8 | P26: =收盤行情!P41 -> 0.19 | Q26: 8
B27: 期別 | C27: 98.1Q | D27: 97.4Q | E27: 97.3Q | F27: 97.2Q | G27: 97.1Q | H27: 96.4Q | I27: 96.3Q | J27: 96.2Q | N27: =收盤行情!K42 -> 8.4 | O27: 9 | P27: =收盤行情!P42 -> 0.25 | Q27: 9
B28: 流動比率 | C28: 462.24 | D28: 338.7 | E28: 275.37 | F28: 161.03 | G28: 369.92 | H28: 397.94 | I28: 383.27 | J28: 182.31 | N28: =收盤行情!K43 -> 15.98 | O28: 10 | P28: =收盤行情!P43 -> 0.43 | Q28: 10
B29: 速動比率 | C29: 411.12 | D29: 304.12 | E29: 234.3 | F29: 141.26 | G29: 319.93 | H29: 335.73 | I29: 325.52 | J29: 159.78 | N29: 稅前淨利率 | O29: 分數 | P29: 負債比率 | Q29: 分數
B30: 負債比率 | C30: 9.76 | D30: 11.87 | E30: 13.19 | F30: 25.79 | G30: 11.99 | H30: 11.72 | I30: 11.73 | J30: 24.08 | N30: -999999 | O30: 1 | P30: 0 | Q30: 10
B31: 利息保障倍數 | C31: 19.38 | D31: 145.99 | E31: 387.19 | F31: 363.83 | G31: 354.88 | H31: 290.97 | I31: 229.01 | J31: 187.57 | N31: =收盤行情!L35 -> -166.73 | O31: 2 | P31: =收盤行情!Q35 -> 18.38 | Q31: 9
B32: 經營能力 | N32: =收盤行情!L36 -> -23.42 | O32: 3 | P32: =收盤行情!Q36 -> 80.63 | Q32: 8
B33: 期別 | C33: 98.1Q | D33: 97.4Q | E33: 97.3Q | F33: 97.2Q | G33: 97.1Q | H33: 96.4Q | I33: 96.3Q | J33: 96.2Q | N33: =收盤行情!L37 -> -8.09 | O33: 4 | P33: =收盤行情!Q37 -> 107.95 | Q33: 7
B34: 應收帳款週轉率(次) | C34: 2.61 | D34: 2 | E34: 2.14 | F34: 2.25 | G34: 2.24 | H34: 2.27 | I34: 2.33 | J34: 2.24 | N34: =收盤行情!L38 -> 0 | O34: 5 | P34: =收盤行情!Q38 -> 134.87 | Q34: 6
B35: 存貨週轉率(次) | C35: 2.31 | D35: 2.55 | E35: 2.4 | F35: 2.31 | G35: 2.38 | H35: 2.23 | I35: 2.15 | J35: 2.02 | N35: =收盤行情!L39 -> 2.62 | O35: 6 | P35: =收盤行情!Q39 -> 157.97 | Q35: 5
B36: 固定資產週轉率(次) | C36: 0.18 | D36: 0.27 | E36: 0.39 | F36: 0.36 | G36: 0.36 | H36: 0.38 | I36: 0.36 | J36: 0.32 | N36: =收盤行情!L40 -> 5.1 | O36: 7 | P36: =收盤行情!Q40 -> 187.7 | Q36: 4
B37: 總資產週轉率(次) | C37: 0.07 | D37: 0.11 | E37: 0.16 | F37: 0.15 | G37: 0.15 | H37: 0.16 | I37: 0.15 | J37: 0.12 | N37: =收盤行情!L41 -> 7.96 | O37: 8 | P37: =收盤行情!Q41 -> 234.99 | Q37: 3
B38: 員工平均營業額(千元) | C38: 19 | D38: 30 | E38: 44 | F38: 41 | G38: 42 | H38: 4427 | I38: 4213 | J38: 3541 | N38: =收盤行情!L42 -> 13.56 | O38: 9 | P38: =收盤行情!Q42 -> 310.23 | Q38: 2
B39: 淨值週轉率 | C39: 0.08 | D39: 0.13 | E39: 0.2 | F39: 0.18 | G39: 0.17 | H39: 0.18 | I39: 0.18 | J39: 0.15 | N39: =收盤行情!L43 -> 24.29 | O39: 10 | P39: =收盤行情!Q43 -> 470.21 | Q39: 1
N40: 股東權益報酬率 | O40: 分數 | P40: 總資產週轉率(次) | Q40: 分數
B41: 資本結構 | N41: -999999 | O41: 1 | P41: -999999 | Q41: 1
B42: 期別 | C42: 98.1Q | D42: 97.4Q | E42: 97.3Q | F42: 97.2Q | G42: 97.1Q | H42: 96.4Q | I42: 96.3Q | J42: 96.2Q | N42: =收盤行情!M35 -> -11.41 | O42: 2 | P42: =收盤行情!R35 -> 0.01 | Q42: 2
B43: 負債對淨值比率 | C43: 10.82 | D43: 13.47 | E43: 15.19 | F43: 34.75 | G43: 13.62 | H43: 13.28 | I43: 13.29 | J43: 31.72 | N43: =收盤行情!M36 -> -3.1 | O43: 3 | P43: =收盤行情!R36 -> 11.25 | Q43: 3
B44: 長期資金適合率 | C44: 239.77 | D44: 219.72 | E44: 206.01 | F44: 189.45 | G44: 218.56 | H44: 213.63 | I44: 215.39 | J44: 203.64 | N44: =收盤行情!M37 -> -1.28 | O44: 4 | P44: =收盤行情!R37 -> 17.4 | Q44: 4
N45: =收盤行情!M38 -> 0 | O45: 5 | P45: =收盤行情!R38 -> 23.85 | Q45: 5
N46: =收盤行情!M39 -> 0.56 | O46: 6 | P46: =收盤行情!R39 -> 29.48 | Q46: 6
N47: =收盤行情!M40 -> 1.08 | O47: 7 | P47: =收盤行情!R40 -> 34.71 | Q47: 7
N48: =收盤行情!M41 -> 1.84 | O48: 8 | P48: =收盤行情!R41 -> 40.17 | Q48: 8
N49: =收盤行情!M42 -> 2.64 | O49: 9 | P49: =收盤行情!R42 -> 47.44 | Q49: 9
N50: =收盤行情!M43 -> 4.47 | O50: 10 | P50: =收盤行情!R43 -> 55.9 | Q50: 10
N51: 資產報酬率 | O51: 分數 | P51: 員工平均營業額(千元) | Q51: 分數
N52: -999999 | O52: 1 | P52: -999999 | Q52: 1
N53: =收盤行情!N35 -> -5.78 | O53: 2 | P53: =收盤行情!S35 -> 6 | Q53: 2
N54: =收盤行情!N36 -> -1.65 | O54: 3 | P54: =收盤行情!S36 -> 15.66 | Q54: 3
N55: =收盤行情!N37 -> -0.68 | O55: 4 | P55: =收盤行情!S37 -> 23.41 | Q55: 4
N56: =收盤行情!N38 -> 0.03 | O56: 5 | P56: =收盤行情!S38 -> 34.07 | Q56: 5
N57: =收盤行情!N39 -> 0.43 | O57: 6 | P57: =收盤行情!S39 -> 44.5 | Q57: 6
N58: =收盤行情!N40 -> 0.77 | O58: 7 | P58: =收盤行情!S40 -> 55.36 | Q58: 7
N59: =收盤行情!N41 -> 1.15 | O59: 8 | P59: =收盤行情!S41 -> 70.61 | Q59: 8
N60: =收盤行情!N42 -> 1.71 | O60: 9 | P60: =收盤行情!S42 -> 94.73 | Q60: 9
N61: =收盤行情!N43 -> 2.81 | O61: 10 | P61: =收盤行情!S43 -> 137.24 | Q61: 10
N62: 營收成長率 | O62: 分數 | P62: 負債對淨值比率 | Q62: 分數
N63: -999999 | O63: 1 | P63: 0 | Q63: 10
N64: =收盤行情!O35 -> -77.08 | O64: 2 | P64: =收盤行情!T35 -> 22.52 | Q64: 9
N65: =收盤行情!O36 -> -53.58 | O65: 3 | P65: =收盤行情!T36 -> 139.69 | Q65: 8
N66: =收盤行情!O37 -> -43.66 | O66: 4 | P66: =收盤行情!T37 -> 207.81 | Q66: 7
N67: =收盤行情!O38 -> -37.03 | O67: 5 | P67: =收盤行情!T38 -> 260 | Q67: 6
N68: =收盤行情!O39 -> -31.4 | O68: 6 | P68: =收盤行情!T39 -> 339.6 | Q68: 5
N69: =收盤行情!O40 -> -24.05 | O69: 7 | P69: =收盤行情!T40 -> 474.74 | Q69: 4
N70: =收盤行情!O41 -> -15.78 | O70: 8 | P70: =收盤行情!T41 -> 699.11 | Q70: 3
N71: =收盤行情!O42 -> -4.66 | O71: 9 | P71: =收盤行情!T42 -> 1103.39 | Q71: 2
N72: =收盤行情!O43 -> 8.91 | O72: 10 | P72: =收盤行情!T43 -> 2376.74 | Q72: 1
